bitfinex-derivatives/quotes_BTCF0:USTF0_20250130
["timestamp","ask_amount","ask_price","bid_price","bid_amount"]
[1738205552203,0.85759947,104540.0,104530.0,0.36302375]
[1738205553803,0.92681466,104540.0,104530.0,0.36302375]
[1738205554300,0.85759947,104540.0,104530.0,0.36302375]
[1738205554701,0.8668795,104540.0,104530.0,0.36302375]
[1738205555894,0.91493365,104540.0,104530.0,0.192342]
[1738205556096,0.91493365,104540.0,104530.0,0.26155719]
[1738205558905,0.91493365,104540.0,104530.0,0.192342]
[1738205559107,0.91489365,104540.0,104530.0,0.192342]
[1738205561601,0.91489365,104540.0,104530.0,0.26155719]
[1738205562903,0.91489365,104540.0,104530.0,0.192342]
[1738205563305,0.87197365,104540.0,104530.0,0.192342]
[1738205563501,0.91489365,104540.0,104530.0,0.192342]
[1738205564306,0.85758546,104540.0,104530.0,0.36302375]
[1738205565212,0.85758546,104540.0,104530.0,0.43223894]
[1738205565415,0.78837027,104540.0,104530.0,0.43223894]
[1738205565908,0.85758546,104540.0,104530.0,0.36302375]
[1738205567217,0.92680065,104540.0,104530.0,0.17168175]
[1738205569415,0.85758546,104540.0,104530.0,0.36302375]
[1738205569822,0.85758546,104540.0,104530.0,0.43223894]
[1738205570316,0.85758546,104540.0,104530.0,0.36302375]
[1738205571513,0.85758546,104540.0,104530.0,0.17168175]
[1738205572707,0.77155819,104540.0,104530.0,0.001]
[1738205572907,0.8667977,104540.0,104530.0,0.192342]
[1738205573106,0.9096777,104540.0,104530.0,0.192342]
[1738205573916,0.8667977,104540.0,104530.0,0.192342]
[1738205574114,0.9096777,104540.0,104530.0,0.192342]
[1738205575015,0.8667977,104540.0,104530.0,0.192342]
[1738205575214,0.9096777,104540.0,104530.0,0.192342]
[1738205576421,0.88144802,104540.0,104530.0,0.192342]
[1738205581717,0.88144802,104540.0,104530.0,0.19220678]
[1738205583021,0.88144802,104540.0,104530.0,0.26142197]
[1738205583219,0.88144802,104540.0,104530.0,0.19220678]
[1738205585625,0.88144802,104540.0,104530.0,0.26142197]
[1738205585818,0.88144802,104540.0,104530.0,0.19220678]
[1738205586323,0.87644802,104540.0,104530.0,0.191342]
[1738205586829,0.87644802,104540.0,104530.0,0.26055719]
[1738205587030,0.84274802,104540.0,104530.0,0.26055719]
[1738205587632,0.95750709,104540.0,104530.0,0.43123894]
[1738205590223,0.95750709,104540.0,104530.0,0.36202375]
[1738205591536,1.02672228,104540.0,104530.0,0.17068175]
[1738205591730,1.05872228,104540.0,104530.0,0.17068175]
[1738205592030,0.75264021,104540.0,104520.0,0.5897574]
[1738205592231,0.65645719,104530.0,104520.0,0.5897574]
[1738205594529,0.65745719,104530.0,104520.0,0.3984014]
[1738205595235,0.70029719,104530.0,104520.0,0.3984014]
[1738205595637,0.76951238,104530.0,104520.0,0.3984014]
[1738205595842,0.19136,104520.0,104510.0,0.39825742]
[1738205596030,0.75709038,104520.0,104510.0,0.39825742]
[1738205596934,0.75709038,104520.0,104510.0,0.39925742]
[1738205598139,0.63494557,104520.0,104500.0,0.28461357]
[1738205598338,0.69889319,104510.0,104500.0,0.28461357]
[1738205599540,0.65609319,104510.0,104500.0,0.28561357]
[1738205599844,0.69889319,104510.0,104500.0,0.28561357]
[1738205600634,0.69889319,104510.0,104500.0,0.28661357]
[1738205600838,0.69889319,104510.0,104500.0,0.00214398]
[1738205601936,0.76810838,104510.0,104500.0,0.00214398]
[1738205604549,0.69889319,104510.0,104500.0,0.00214398]
[1738205605153,0.95674579,104510.0,104500.0,0.00214398]
[1738205605741,1.02596098,104510.0,104500.0,0.00214398]
[1738205606648,0.95674579,104510.0,104500.0,0.00214398]
[1738205607247,0.4492306,104510.0,104500.0,0.26275617]
[1738205607447,0.2578526,104510.0,104500.0,0.26275617]
[1738205607851,0.2578526,104510.0,104500.0,1.76275617]
[1738205608452,0.11442277,104510.0,104500.0,1.76275617]
[1738205608756,0.11442277,104510.0,104500.0,1.79907011]
[1738205608945,0.15718277,104510.0,104500.0,1.79907011]
[1738205609853,0.8148899,104510.0,104500.0,0.19354098]
[1738205610161,0.8148899,104510.0,104500.0,0.00214398]
[1738205610359,0.8812899,104510.0,104500.0,0.00214398]
[1738205612457,0.96700824,104510.0,104500.0,0.00214398]
[1738205612648,0.97653045,104510.0,104500.0,0.00214398]
[1738205616566,0.97649045,104510.0,104500.0,0.00214398]
[1738205619765,0.93377045,104510.0,104500.0,0.00214398]
[1738205619965,0.89077211,104510.0,104500.0,0.00214398]
[1738205621968,0.84805211,104510.0,104500.0,0.00214398]
[1738205622166,0.89077211,104510.0,104500.0,0.00214398]
[1738205623069,0.89077211,104510.0,104500.0,0.19354098]
[1738205625160,0.66660077,104510.0,104500.0,0.29907011]
[1738205625373,0.70928077,104510.0,104500.0,0.35957011]
[1738205625868,0.11442277,104510.0,104500.0,1.85957011]
[1738205626073,0.11442277,104510.0,104500.0,2.22037011]
[1738205626369,0.11442277,104510.0,104500.0,1.85957011]
[1738205626773,0.11442277,104510.0,104500.0,2.22037011]
[1738205626973,0.11442277,104510.0,104500.0,1.85857011]
[1738205627166,0.47522277,104510.0,104500.0,1.85957011]
[1738205627366,0.47522277,104510.0,104500.0,0.35957011]
[1738205627565,0.7721299,104510.0,104500.0,0.25404098]
[1738205627766,0.91555973,104510.0,104500.0,0.00214398]
[1738205627965,0.94855973,104510.0,104500.0,0.00214398]
[1738205628377,0.98075973,104510.0,104500.0,0.00214398]
[1738205628880,1.02343973,104510.0,104500.0,0.00214398]
[1738205629282,0.98075973,104510.0,104500.0,0.00014398]
[1738205629482,1.02343973,104510.0,104500.0,0.00214398]
[1738205629978,1.02443973,104510.0,104500.0,0.00114398]
[1738205630971,1.02443973,104510.0,104500.0,0.00014398]
[1738205631172,1.08167647,104510.0,104500.0,0.00014398]
[1738205632379,1.09132393,104510.0,104500.0,0.00014398]
[1738205632570,0.191415,104490.0,104480.0,0.36078946]
[1738205632771,0.594855,104490.0,104480.0,0.36078946]
[1738205633476,0.70038413,104490.0,104480.0,0.22446033]
[1738205633674,0.594855,104490.0,104480.0,0.32998946]
[1738205634075,0.594855,104490.0,104480.0,0.33398946]
[1738205634282,0.594855,104490.0,104480.0,0.33598946]
[1738205634579,0.79554311,104490.0,104480.0,0.33598946]
[1738205634970,0.79554311,104490.0,104480.0,0.36658946]
[1738205643286,0.79554311,104490.0,104480.0,0.36515413]
[1738205645096,0.39210311,104490.0,104480.0,0.36515413]
[1738205645297,0.43470311,104490.0,104480.0,0.36515413]
[1738205645486,0.20068811,104490.0,104480.0,0.36515413]
[1738205645991,0.20068811,104490.0,104480.0,1.86515413]
[1738205646392,0.75290311,104490.0,104480.0,1.86515413]
[1738205646790,0.63822419,104490.0,104480.0,1.86515413]
[1738205647192,0.63822419,104490.0,104480.0,1.759625]
[1738205647393,0.74375332,104490.0,104480.0,1.759625]
[1738205647596,0.74375332,104490.0,104480.0,0.006]
[1738205647805,0.77695332,104490.0,104480.0,0.006]
[1738205649501,0.89163224,104490.0,104480.0,0.006]
[1738205649802,0.89163224,104490.0,104480.0,0.11152913]
[1738205650099,0.78610311,104490.0,104480.0,0.11152913]
[1738205650300,0.89163224,104490.0,104480.0,0.006]
[1738205650902,0.89163224,104490.0,104480.0,0.197433]
[1738205651092,0.78610311,104490.0,104480.0,0.30296213]
[1738205652101,0.79546311,104490.0,104480.0,0.30296213]
[1738205652294,0.79546311,104490.0,104480.0,0.36516213]
[1738205656207,0.79546311,104490.0,104480.0,0.197433]
[1738205656506,0.79546311,104490.0,104480.0,0.30296213]
[1738205660711,0.79546311,104490.0,104480.0,0.26671534]
[1738205660913,0.85288375,104490.0,104480.0,0.49460629]
[1738205661513,0.81032375,104490.0,104480.0,0.49460629]
[1738205676936,0.81032375,104490.0,104480.0,0.42532395]
[1738205678727,0.81032375,104490.0,104480.0,0.49460629]
[1738205683737,0.81032375,104490.0,104480.0,0.42532395]
[1738205684738,0.81032375,104490.0,104480.0,0.49460629]
[1738205686040,0.81032375,104490.0,104480.0,0.56388863]
[1738205687540,0.552215,104490.0,104480.0,0.33599768]
[1738205690946,0.6671046,104490.0,104480.0,0.56402337]
[1738205693037,0.1148896,104490.0,104480.0,0.99052337]
[1738205693237,0.1148896,104490.0,104480.0,0.62972337]
[1738205693537,0.1148896,104490.0,104480.0,2.12972337]
[1738205694248,0.1148896,104490.0,104480.0,2.49052337]
[1738205695836,0.3160904,104500.0,104480.0,2.41837271]
[1738205696040,0.3160904,104500.0,104490.0,0.69077968]
[1738205696041,0.27896441,104500.0,104490.0,0.69077968]
[1738205697345,0.27896441,104500.0,104490.0,0.69177968]
[1738205698250,0.27896441,104500.0,104490.0,0.69277968]
[1738205699350,0.27896441,104500.0,104490.0,0.72367968]
[1738205700451,0.00014398,104510.0,104500.0,0.191397]
[1738205700748,0.00014398,104510.0,104500.0,0.69076168]
[1738205704647,0.00014398,104510.0,104500.0,2.19076168]
[1738205704848,0.00014398,104510.0,104500.0,2.26004402]
[1738205705048,0.00014398,104510.0,104500.0,2.19076168]
[1738205705254,0.00014398,104510.0,104500.0,2.26004402]
[1738205705646,0.00014398,104510.0,104500.0,2.19076168]
[1738205705846,0.00014398,104510.0,104500.0,2.26004402]
[1738205706245,0.00014398,104510.0,104500.0,2.32004402]
[1738205706649,0.00129181,104520.0,104510.0,0.191378]
[1738205706855,0.11872051,104530.0,104520.0,0.19136]
[1738205707155,0.11872051,104530.0,104520.0,0.69072468]
[1738205707353,0.11872051,104530.0,104520.0,2.19072468]
[1738205708048,0.11872051,104530.0,104520.0,2.19172468]
[1738205708250,0.0327,104530.0,104520.0,2.19172468]
[1738205708856,0.0327,104530.0,104520.0,0.33092468]
[1738205709144,0.584842,104530.0,104520.0,0.33092468]
[1738205709355,0.224042,104530.0,104520.0,0.33092468]
[1738205709754,0.224042,104530.0,104520.0,0.26164234]
[1738205709960,0.584842,104530.0,104520.0,0.26164234]
[1738205710256,0.584842,104530.0,104520.0,0.001]
[1738205710257,0.65412434,104530.0,104520.0,0.001]
[1738205711354,0.19136,104520.0,104510.0,0.06942632]
[1738205711550,0.66368234,104520.0,104510.0,0.00014398]
[1738205711854,0.73296468,104520.0,104510.0,0.00014398]
[1738205712557,0.6999401,104520.0,104510.0,0.00014398]
[1738205713556,0.7306401,104520.0,104510.0,0.00014398]
[1738205714257,0.7316401,104520.0,104510.0,0.00114398]
[1738205714765,0.7626401,104520.0,104510.0,0.00114398]
[1738205716562,0.77227604,104520.0,104510.0,0.00114398]
[1738205717460,0.87781614,104520.0,104510.0,0.00114398]
[1738205717854,0.96354406,104520.0,104510.0,0.00114398]
[1738205718254,0.87781614,104520.0,104510.0,0.00114398]
[1738205719966,0.2969371,104500.0,104490.0,1.7969521]
[1738205720154,0.6999371,104500.0,104490.0,1.7969521]
[1738205720354,0.7955371,104500.0,104490.0,1.7969521]
[1738205720754,0.191415,104490.0,104480.0,0.2969701]
[1738205721261,0.191415,104490.0,104480.0,1.7969701]
[1738205721963,0.191415,104490.0,104480.0,1.8059701]
[1738205723364,0.191415,104490.0,104480.0,1.8079701]
[1738205725153,0.2969551,104490.0,104480.0,1.8079701]
[1738205725457,0.191415,104490.0,104480.0,1.8079701]
[1738205725659,0.552215,104490.0,104480.0,1.8079701]
[1738205726469,0.6577551,104490.0,104480.0,1.70243]
[1738205726767,0.6577551,104490.0,104480.0,1.8079701]
[1738205730371,0.552215,104490.0,104480.0,1.8079701]
[1738205731164,0.191415,104490.0,104480.0,1.8079701]
[1738205731366,0.552215,104490.0,104480.0,1.8079701]
[1738205732665,0.62149948,104490.0,104480.0,1.77171448]
[1738205733064,0.552215,104490.0,104480.0,1.77171448]
[1738205733268,0.191415,104490.0,104480.0,1.77171448]
[1738205734568,0.62149948,104490.0,104480.0,0.27171448]
[1738205735864,0.552215,104490.0,104480.0,0.27171448]
[1738205736076,0.26069948,104490.0,104480.0,0.27171448]
[1738205736575,0.62149948,104490.0,104480.0,0.27171448]
[1738205737977,0.191415,104490.0,104480.0,0.30251448]
[1738205738275,0.233535,104490.0,104480.0,0.40449896]
[1738205738471,0.233535,104490.0,104480.0,0.43709896]
[1738205739369,0.233535,104490.0,104480.0,0.36781448]
[1738205740663,0.233535,104490.0,104480.0,1.86781448]
[1738205740867,0.04212,104490.0,104480.0,1.86781448]
[1738205745880,0.12785512,104490.0,104480.0,2.26484728]
[1738205747774,0.233535,104490.0,104480.0,1.86781448]
[1738205748671,0.233535,104490.0,104480.0,0.36781448]
[1738205749168,0.233535,104490.0,104480.0,1.86781448]
[1738205749779,0.31963416,104490.0,104480.0,2.09567347]
[1738205750077,0.74971864,104490.0,104480.0,0.43028899]
[1738205750565,0.74971864,104490.0,104480.0,0.23885899]
[1738205752377,0.81900312,104490.0,104480.0,0.23885899]
[1738205754187,0.87640257,104490.0,104480.0,0.011]
[1738205757888,0.80711809,104490.0,104480.0,0.011]
[1738205758792,0.97931642,104490.0,104480.0,0.011]
[1738205761591,1.0486009,104490.0,104480.0,0.011]
[1738205761800,0.97931642,104490.0,104480.0,0.011]
[1738205761995,0.87640257,104490.0,104480.0,0.011]
[1738205763298,0.80711809,104490.0,104480.0,0.011]
[1738205764203,0.87640257,104490.0,104480.0,0.011]
[1738205766798,0.80711809,104490.0,104480.0,0.011]
[1738205767299,0.87640257,104490.0,104480.0,0.011]
[1738205770899,0.80711809,104490.0,104480.0,0.011]
[1738205771104,0.87640257,104490.0,104480.0,0.011]
[1738205772601,0.83428257,104490.0,104480.0,0.011]
[1738205772804,1.0484409,104490.0,104480.0,0.011]
[1738205777211,0.90494229,104490.0,104480.0,0.011]
[1738205778113,0.83565781,104490.0,104480.0,0.011]
[1738205782112,0.66345948,104490.0,104480.0,0.011]
[1738205782924,0.66337948,104490.0,104480.0,0.08028448]
[1738205783224,0.66337948,104490.0,104480.0,0.011]
[1738205784521,0.62149948,104490.0,104480.0,0.08028448]
[1738205784812,0.66337948,104490.0,104480.0,0.27171748]
[1738205785323,0.40268,104490.0,104480.0,0.27171748]
[1738205785818,0.47196448,104490.0,104480.0,0.27171748]
[1738205786321,0.3608,104490.0,104480.0,0.27171748]
[1738205786521,0.40268,104490.0,104480.0,0.27171748]
[1738205786710,0.47196448,104490.0,104480.0,0.27171748]
[1738205786909,0.11116448,104490.0,104480.0,0.27171748]
[1738205788517,0.04188,104490.0,104480.0,0.27171748]
[1738205788919,0.04188,104490.0,104480.0,0.34100196]
[1738205789307,0.30271146,104500.0,104490.0,0.191415]
[1738205789505,0.30271146,104500.0,104490.0,0.255615]
[1738205789707,0.30271146,104500.0,104490.0,0.286815]
[1738205789907,0.66351146,104500.0,104490.0,0.286815]
[1738205790411,0.66351146,104500.0,104490.0,0.287815]
[1738205791116,0.97908997,104500.0,104490.0,0.287815]
[1738205791312,1.04837445,104500.0,104490.0,0.287815]
[1738205793017,1.04837445,104500.0,104490.0,0.293815]
[1738205794028,1.04837445,104500.0,104490.0,0.262615]
[1738205794322,1.07997445,104500.0,104490.0,0.262615]
[1738205794526,1.07993445,104500.0,104490.0,0.262615]
[1738205795523,0.87896178,104500.0,104490.0,0.262615]
[1738205796425,0.8096773,104500.0,104490.0,0.262615]
[1738205796913,0.87896178,104500.0,104490.0,0.262615]
[1738205797113,0.8096773,104500.0,104490.0,0.262615]
[1738205797519,0.87896178,104500.0,104490.0,0.007]
[1738205797725,0.91206178,104500.0,104490.0,0.007]
[1738205798524,0.9979855,104500.0,104490.0,0.007]
[1738205798726,1.0286855,104500.0,104490.0,0.007]
[1738205802430,0.9868455,104500.0,104490.0,0.007]
[1738205807132,1.10189445,104500.0,104490.0,0.007]
[1738205807727,0.191433,104480.0,104470.0,0.20111758]
[1738205807928,0.69080196,104480.0,104470.0,0.20111758]
[1738205808233,0.65231748,104480.0,104470.0,0.20111758]
[1738205809224,0.65231748,104480.0,104470.0,0.20411758]
[1738205810123,0.65331748,104480.0,104470.0,0.21311758]
[1738205810329,0.33431748,104480.0,104470.0,0.21311758]
[1738205810633,0.33431748,104480.0,104470.0,0.28240206]
[1738205810634,0.53497015,104480.0,104470.0,0.28240206]
[1738205811025,0.53497015,104480.0,104470.0,0.31400206]
[1738205811528,0.53497015,104480.0,104470.0,0.34670206]
[1738205811529,0.50417015,104480.0,104470.0,0.34670206]
[1738205812036,0.50417015,104480.0,104470.0,1.87830206]
[1738205814333,0.38951148,104480.0,104470.0,2.04923515]
[1738205814735,0.38951148,104480.0,104470.0,1.97995067]
[1738205815437,0.38947148,104480.0,104470.0,1.97995067]
[1738205816037,0.38947148,104480.0,104470.0,2.04923515]
[1738205817230,0.38947148,104480.0,104470.0,1.97995067]
[1738205821235,0.38947148,104480.0,104470.0,2.04923515]
[1738205821831,0.320187,104480.0,104470.0,2.04923515]
[1738205822032,0.38947148,104480.0,104470.0,2.04923515]
[1738205822542,0.128714,104480.0,104470.0,2.04923515]
[1738205822929,0.086994,104480.0,104470.0,2.41003515]
[1738205826946,0.001,104480.0,104470.0,2.46701285]
[1738205827335,0.001,104480.0,104470.0,0.96701285]
[1738205827746,0.001,104480.0,104470.0,2.46701285]
[1738205831247,0.001,104480.0,104470.0,2.75190134]
[1738205833946,0.001,104480.0,104470.0,2.79190134]
[1738205835355,0.001,104480.0,104470.0,3.20483997]
[1738205835552,0.085994,104490.0,104480.0,0.191433]
[1738205835747,0.085994,104490.0,104480.0,0.69080196]
[1738205836158,0.25824743,104500.0,104490.0,0.191415]
[1738205836453,0.25824743,104500.0,104490.0,0.71609948]
[1738205837652,0.25824743,104500.0,104490.0,0.78538396]
[1738205838847,0.25824743,104500.0,104490.0,0.79138396]
[1738205839053,0.25824743,104500.0,104490.0,2.29138396]
[1738205839458,0.25824743,104500.0,104490.0,2.46207423]
[1738205839459,0.00014398,104500.0,104490.0,2.46207423]
[1738205839649,0.00014398,104500.0,104490.0,2.39278975]
[1738205841256,0.00014398,104500.0,104490.0,0.89278975]
[1738205841451,0.00014398,104500.0,104490.0,0.90227567]
[1738205843149,0.00014398,104500.0,104490.0,0.97156015]
[1738205843457,0.00014398,104500.0,104490.0,1.19947094]
[1738205846860,0.95636011,104520.0,104510.0,0.191378]
[1738205847053,0.95636011,104520.0,104510.0,0.26066248]
[1738205847259,0.84170144,104520.0,104510.0,0.26066248]
[1738205847959,0.77241696,104520.0,104510.0,0.26066248]
[1738205848160,0.77341696,104520.0,104510.0,0.26066248]
[1738205849753,0.78041696,104520.0,104510.0,0.26166248]
[1738205850253,0.657865,104520.0,104510.0,0.26166248]
[1738205850553,0.4333,104520.0,104510.0,0.26166248]
[1738205850952,0.4333,104520.0,104510.0,1.76166248]
[1738205851154,0.4004,104520.0,104510.0,1.76166248]
[1738205851658,0.4004,104520.0,104510.0,1.79226248]
[1738205851852,0.4004,104520.0,104510.0,1.80167981]
[1738205853558,0.4004,104520.0,104510.0,0.30167981]
[1738205856258,0.4004,104520.0,104510.0,0.27107981]
[1738205856564,0.4306,104520.0,104510.0,0.27107981]
[1738205857060,0.008,104520.0,104510.0,0.49107981]
[1738205857264,0.09626576,104540.0,104510.0,0.93567077]
[1738205857558,0.17213373,104550.0,104540.0,0.191323]
[1738205857763,0.17213373,104550.0,104540.0,0.69069196]
[1738205858164,0.17213373,104550.0,104540.0,2.19069196]
[1738205858565,0.17213373,104550.0,104540.0,2.157546]
[1738205859366,0.17313373,104550.0,104540.0,2.157546]
[1738205859664,0.17313373,104550.0,104540.0,2.158546]
[1738205863067,0.17313373,104550.0,104540.0,0.658546]
[1738205864368,0.17313373,104550.0,104540.0,0.82352094]
[1738205864563,0.0949,104570.0,104560.0,0.191287]
[1738205864756,0.0949,104570.0,104560.0,0.65751]
[1738205866164,0.00143487,104580.0,104570.0,0.191269]
[1738205866357,0.00143487,104580.0,104570.0,0.296692]
[1738205866776,0.00143487,104580.0,104570.0,2.157492]
[1738205867362,0.00143487,104580.0,104570.0,2.158492]
[1738205867769,0.00143487,104580.0,104570.0,2.263915]
[1738205868564,0.45806973,104590.0,104570.0,2.072646]
[1738205868773,0.45806973,104590.0,104580.0,0.402096]
[1738205869273,0.285936,104590.0,104580.0,0.402096]
[1738205869781,0.0947,104590.0,104580.0,0.402096]
[1738205870175,0.0947,104590.0,104580.0,0.403096]
[1738205873574,0.0947,104590.0,104580.0,0.402096]
[1738205873775,0.0947,104590.0,104580.0,0.403096]
[1738205875082,0.0947,104590.0,104580.0,0.297673]
[1738205876383,0.0947,104590.0,104580.0,0.763896]
[1738205876977,0.0947,104590.0,104580.0,0.658473]
[1738205878781,0.0947,104590.0,104580.0,2.158473]
[1738205880986,0.752155,104590.0,104580.0,1.69225]
[1738205881288,0.752155,104590.0,104580.0,0.001]
[1738205881478,0.19125,104580.0,104570.0,0.00014398]
[1738205881786,0.657473,104580.0,104570.0,0.00014398]
[1738205882685,0.6212271,104580.0,104570.0,0.00014398]
[1738205882873,0.6212271,104580.0,104570.0,0.00114398]
[1738205883788,0.6212271,104580.0,104570.0,0.07032108]
[1738205884485,0.55205,104580.0,104570.0,0.07032108]
[1738205884689,0.55205,104580.0,104570.0,0.1065356]
[1738205884982,0.56154449,104580.0,104570.0,0.2978046]
[1738205885182,0.55205,104580.0,104570.0,0.2978046]
[1738205885378,0.59353,104580.0,104570.0,0.2978046]
[1738205886585,0.04148,104580.0,104570.0,0.2978046]
[1738205886986,0.79360862,104590.0,104570.0,0.2978046]
[1738205887382,0.79360862,104590.0,104570.0,0.1065356]
[1738205887581,0.646737,104590.0,104580.0,0.29664162]
[1738205887986,0.0619,104590.0,104580.0,0.29664162]
[1738205889078,0.031,104590.0,104580.0,0.29664162]
[1738205889478,0.191305,104550.0,104540.0,0.17069027]
[1738205889785,0.80512824,104550.0,104540.0,0.17069027]
[1738205890783,0.80512824,104550.0,104540.0,0.17769027]
[1738205891791,0.80512824,104550.0,104540.0,0.75401793]
[1738205892587,0.86772824,104550.0,104540.0,0.75401793]
[1738205892783,0.89822824,104550.0,104540.0,0.75401793]
[1738205893091,0.89822824,104550.0,104540.0,0.75101793]
[1738205893682,0.89822824,104550.0,104540.0,0.75001793]
[1738205894790,0.80940824,104550.0,104540.0,0.75001793]
[1738205894986,0.70401662,104550.0,104540.0,0.75001793]
[1738205895187,0.6576266,104560.0,104540.0,1.04673255]
[1738205895382,0.7045466,104560.0,104550.0,0.222405]
[1738205896095,0.40786398,104560.0,104550.0,0.32779662]
[1738205896299,0.55088299,104560.0,104550.0,0.32779662]
[1738205896592,0.14416299,104560.0,104550.0,0.32879662]
[1738205898694,0.14416299,104560.0,104550.0,0.43418824]
[1738205898996,0.14416299,104560.0,104550.0,0.44366269]
[1738205899499,0.00114398,104560.0,104550.0,0.44366269]
[1738205901290,0.00114398,104560.0,104550.0,0.80446269]
[1738205902498,0.00114398,104560.0,104550.0,2.30446269]
[1738205905490,0.552055,104580.0,104570.0,0.191269]
[1738205905686,0.552055,104580.0,104570.0,0.29666062]
[1738205906095,0.552055,104580.0,104570.0,0.35796062]
[1738205906291,0.3608,104580.0,104570.0,0.35796062]
[1738205907803,0.3618,104580.0,104570.0,0.35896062]
[1738205907992,0.3618,104580.0,104570.0,1.85896062]
[1738205910201,0.001,104580.0,104570.0,1.85896062]
[1738205910502,0.001,104580.0,104570.0,0.35896062]
[1738205910994,0.001,104580.0,104570.0,1.85896062]
[1738205911301,0.3618,104580.0,104570.0,1.85896062]
[1738205913397,0.55305,104580.0,104570.0,0.253569]
[1738205913604,0.65844162,104580.0,104570.0,0.253569]
[1738205913804,0.65844162,104580.0,104570.0,0.192269]
[1738205914209,0.59837,104580.0,104570.0,0.29766062]
[1738205915602,0.59837,104580.0,104570.0,0.30730693]
[1738205917912,0.1,104600.0,104570.0,1.12746955]
[1738205918204,0.56529492,104640.0,104620.0,0.191177]
[1738205918205,0.3608,104630.0,104620.0,0.191177]
[1738205918406,0.3608,104630.0,104620.0,0.29656862]
[1738205918607,1.0118573,104640.0,104620.0,0.29656862]
[1738205918798,1.01097729,104640.0,104630.0,0.191159]
[1738205918997,0.81982329,104640.0,104630.0,0.191159]
[1738205919399,0.81982329,104640.0,104630.0,0.29655062]
[1738205920507,0.81982329,104640.0,104630.0,0.29755062]
[1738205920802,0.45902329,104640.0,104630.0,0.29755062]
[1738205921002,0.81982329,104640.0,104630.0,0.29755062]
[1738205923603,0.45902329,104640.0,104630.0,0.29755062]
[1738205923810,0.65819863,104650.0,104640.0,0.191141]
[1738205924108,0.70211862,104650.0,104640.0,0.191141]
[1738205924309,0.596727,104650.0,104640.0,0.29653262]
[1738205924506,0.70211862,104650.0,104640.0,0.191141]
[1738205925609,0.596447,104650.0,104640.0,0.191141]
[1738205925909,0.596447,104650.0,104640.0,0.29653262]
[1738205926204,0.596447,104650.0,104640.0,0.29753262]
[1738205926708,0.596447,104650.0,104640.0,0.29653262]
[1738205927010,0.596447,104650.0,104640.0,0.29753262]
[1738205927710,0.551927,104650.0,104640.0,0.29753262]
[1738205927910,0.596007,104650.0,104640.0,0.29753262]
[1738205928407,0.551927,104650.0,104640.0,0.29753262]
[1738205929504,0.65731862,104650.0,104640.0,0.192141]
[1738205929703,0.551927,104650.0,104640.0,0.29753262]
[1738205930412,0.551927,104650.0,104640.0,0.192141]
[1738205931002,0.595487,104650.0,104640.0,0.192141]
[1738205933605,0.551927,104650.0,104640.0,0.29753262]
[1738205934016,0.551927,104650.0,104640.0,0.32903262]
[1738205934609,0.3608,104650.0,104640.0,0.32903262]
[1738205934817,0.3608,104650.0,104640.0,0.39323262]
[1738205935913,0.3608,104650.0,104640.0,0.49862424]
[1738205936420,0.47470317,104660.0,104650.0,0.191122]
[1738205936714,0.11390317,104660.0,104650.0,0.29651362]
[1738205936915,0.11390317,104660.0,104650.0,0.65731362]
[1738205937100,0.47470317,104660.0,104650.0,0.29651362]
[1738205937303,0.66580717,104660.0,104650.0,0.10539162]
[1738205937505,0.58009479,104660.0,104640.0,0.39322662]
[1738205937715,0.551922,104650.0,104640.0,0.39322662]
[1738205938018,0.551922,104650.0,104640.0,0.40090868]
[1738205938915,0.551922,104650.0,104640.0,0.39990868]
[1738205940616,0.551854,104690.0,104650.0,0.04778]
[1738205940814,0.551854,104690.0,104680.0,0.10539162]
[1738205941004,0.551854,104690.0,104680.0,1.57539162]
[1738205941310,0.551854,104690.0,104680.0,0.13739162]
[1738205942318,0.76717474,104700.0,104680.0,0.68925962]
[1738205942512,0.76717474,104700.0,104690.0,0.10539162]
[1738205943113,0.76717474,104700.0,104690.0,0.29644062]
[1738205943715,0.65327157,104700.0,104690.0,0.29644062]
[1738205945020,0.65327157,104700.0,104690.0,0.29744062]
[1738205946621,0.65327157,104700.0,104690.0,0.001]
[1738205946933,0.80318319,104700.0,104690.0,0.001]
[1738205947117,0.75866319,104700.0,104690.0,0.001]
[1738205947423,0.80314319,104700.0,104690.0,0.001]
[1738205948127,0.83594319,104700.0,104690.0,0.001]
[1738205948326,0.94133481,104700.0,104690.0,0.001]
[1738205948727,0.89685481,104700.0,104690.0,0.001]
[1738205948912,0.94105481,104700.0,104680.0,0.00014329]
[1738205949117,0.71964062,104690.0,104680.0,0.00010331]
[1738205951423,0.76348062,104690.0,104680.0,0.00010331]
[1738205951623,0.76348062,104690.0,104680.0,0.00110331]
[1738205952026,0.87738379,104690.0,104680.0,0.00110331]
[1738205955126,0.87682379,104690.0,104680.0,0.00110331]
[1738205955332,1.01933858,104690.0,104680.0,0.00110331]
[1738205955534,1.01921858,104690.0,104680.0,0.00110331]
[1738205956733,1.01921858,104690.0,104680.0,0.00093248]
[1738205957230,0.29647762,104670.0,104660.0,1.53863607]
[1738205957435,0.70023762,104670.0,104660.0,1.53863607]
[1738205958427,0.594846,104670.0,104660.0,1.53863607]
[1738205958930,0.594846,104670.0,104660.0,1.54163607]
[1738205959326,0.594846,104670.0,104660.0,1.64702769]
[1738205959528,0.594846,104670.0,104660.0,1.83813169]
[1738205959826,0.594846,104670.0,104660.0,1.73274007]
[1738205960240,0.594846,104670.0,104660.0,1.83813169]
[1738205961637,0.234046,104670.0,104660.0,1.83813169]
[1738205962734,0.234046,104670.0,104660.0,1.54163607]
[1738205962735,0.70023762,104670.0,104660.0,1.54163607]
[1738205962947,0.594846,104670.0,104660.0,1.54163607]
[1738205963445,0.234046,104670.0,104660.0,1.83813169]
[1738205964146,0.08575146,104680.0,104670.0,0.191086]
[1738205964344,0.08575146,104680.0,104670.0,0.65727762]
[1738205964640,0.08575146,104680.0,104670.0,2.23266924]
[1738205965437,0.08675146,104680.0,104670.0,2.23366924]
[1738205967140,0.00114097,104680.0,104670.0,2.23366924]
[1738205971346,0.00114097,104680.0,104670.0,0.65827762]
[1738205971553,0.19220897,104680.0,104670.0,0.65827762]
[1738205971941,0.19220897,104680.0,104670.0,2.12827762]
[1738205973247,0.44641049,104690.0,104670.0,2.04258324]
[1738205973451,0.21390317,104700.0,104690.0,0.191049]
[1738205973647,0.21390317,104700.0,104690.0,0.65724062]
[1738205973847,0.21390317,104700.0,104690.0,0.68824062]
[1738205974053,0.21390317,104700.0,104690.0,1.79744062]
[1738205974247,0.40493417,104700.0,104690.0,1.79744062]
[1738205974447,0.54744896,104700.0,104690.0,0.32744062]
[1738205974646,0.35641796,104700.0,104690.0,0.32744062]
[1738205975453,0.35641796,104700.0,104690.0,0.32844062]